bitfinex-derivatives/quotes_BTCF0:USTF0_20251118
["timestamp","ask_amount","ask_price","bid_price","bid_amount"]
[1763502796008,0.5144767,92601.0,92600.0,0.05722]
[1763502796307,0.5144767,92601.0,92600.0,0.04397]
[1763502796612,0.40643,92601.0,92600.0,0.1520179]
[1763502796797,0.40743,92601.0,92600.0,0.1520179]
[1763502797404,0.40643,92601.0,92600.0,0.1520179]
[1763502798206,0.40643,92601.0,92600.0,0.04397]
[1763502799612,0.40643,92601.0,92600.0,0.1520179]
[1763502799813,0.40643,92601.0,92600.0,0.04397]
[1763502801009,0.40643,92601.0,92600.0,0.1520179]
[1763502802715,0.40643,92601.0,92600.0,0.022]
[1763502802912,0.04383,92595.0,92594.0,0.1514342]
[1763502806214,0.02244,92595.0,92594.0,0.1514342]
[1763502806814,0.04383,92595.0,92594.0,0.1514342]
[1763502811926,0.00219803,92590.0,92583.0,0.43829737]
[1763502812117,0.00219803,92590.0,92576.0,0.15117786]
[1763502812118,0.04414,92577.0,92576.0,0.15117786]
[1763502812426,0.02435803,92580.0,92579.0,0.04294]
[1763502812625,0.02232196,92586.0,92585.0,0.05615]
[1763502812826,0.00016196,92586.0,92585.0,0.05615]
[1763502813029,0.04430196,92586.0,92585.0,0.05615]
[1763502813222,0.04430196,92586.0,92585.0,0.30322]
[1763502817821,0.04430196,92586.0,92585.0,0.31643]
[1763502820526,0.04430196,92586.0,92585.0,0.30322]
[1763502821119,0.04430196,92586.0,92585.0,0.04294]
[1763502821326,0.04430196,92586.0,92585.0,0.02171]
[1763502821641,0.04430196,92586.0,92585.0,0.04294]
[1763502827330,0.04430196,92586.0,92585.0,0.02171]
[1763502827636,0.04414,92583.0,92582.0,0.26032]
[1763502828341,0.04414,92581.0,92580.0,0.1510112]
[1763502828636,0.04414,92581.0,92580.0,0.04294]
[1763502828837,0.04414,92577.0,92576.0,0.04310196]
[1763502829037,0.5130148,92577.0,92576.0,0.04310196]
[1763502830739,0.40494,92577.0,92576.0,0.04310196]
[1763502831733,0.40494,92577.0,92576.0,0.04410196]
[1763502838342,0.40494,92577.0,92576.0,0.02287196]
[1763502838642,0.40494,92577.0,92576.0,0.00116196]
[1763502838840,0.40494,92577.0,92576.0,0.02364196]
[1763502839232,0.40494,92577.0,92576.0,0.00116196]
[1763502839943,0.43286114,92577.0,92576.0,0.00116196]
[1763502840440,0.43286114,92577.0,92576.0,0.04508196]
[1763502841337,0.43286114,92577.0,92576.0,0.16680786]
[1763502841539,0.40494,92577.0,92576.0,0.16680786]
[1763502843453,0.40494,92577.0,92576.0,0.00116196]
[1763502843631,0.40494,92577.0,92567.0,9.181e-05]
[1763502843632,0.1539353,92568.0,92567.0,9.181e-05]
[1763502843943,0.04585,92551.0,92550.0,0.04392]
[1763502844640,0.04585,92541.0,92540.0,0.04392]
[1763502844843,0.04585,92539.0,92538.0,0.02248]
[1763502845046,0.04585,92538.0,92537.0,0.2828]
[1763502845239,0.04585,92538.0,92537.0,0.30424]
[1763502845437,0.04485,92538.0,92537.0,0.30424]
[1763502845946,0.04485,92538.0,92537.0,0.04392]
[1763502846141,0.1529703,92538.0,92537.0,0.04392]
[1763502846751,0.04485,92538.0,92537.0,0.04392]
[1763502847044,0.01514803,92540.0,92531.0,0.00016204]
[1763502847045,0.02306,92532.0,92531.0,0.04408204]
[1763502847245,0.40665,92537.0,92536.0,0.04392]
[1763502849345,0.40665,92537.0,92536.0,0.02248]
[1763502849534,0.1539773,92532.0,92531.0,0.04408204]
[1763502849738,0.1669273,92532.0,92531.0,0.02264204]
[1763502849938,0.1669273,92532.0,92531.0,0.00016204]
[1763502850540,0.04585,92527.0,92526.0,0.0441902]
[1763502850739,0.40665,92527.0,92526.0,0.0441902]
[1763502851146,0.40665,92527.0,92526.0,0.0578402]
[1763502851642,0.40665,92527.0,92526.0,0.0441902]
[1763502852343,0.40665,92527.0,92526.0,0.0002702]
[1763502852549,0.40665,92527.0,92526.0,0.0441902]
[1763502854350,0.40665,92527.0,92526.0,0.0578402]
[1763502855448,0.40665,92527.0,92526.0,0.0441902]
[1763502857146,0.40665,92527.0,92526.0,0.0578402]
[1763502857955,0.40665,92527.0,92526.0,0.0227502]
[1763502859654,0.40665,92527.0,92526.0,0.0002702]
[1763502859950,0.1539937,92518.0,92517.0,0.00010815]
[1763502860153,0.5147937,92518.0,92517.0,0.00010815]
[1763502860747,0.5147937,92518.0,92517.0,0.04402815]
[1763502861347,0.5147937,92518.0,92517.0,0.02258815]
[1763502861552,0.5147937,92518.0,92517.0,0.00010815]
[1763502862257,0.40665,92518.0,92517.0,0.04541815]
[1763502862650,0.40665,92518.0,92517.0,0.00010815]
[1763502863751,0.40674181,92518.0,92517.0,0.00010815]
[1763502867059,0.40674181,92518.0,92517.0,0.02321815]
[1763502867250,0.40674181,92518.0,92517.0,0.04541815]
[1763502867751,0.40674181,92518.0,92517.0,0.00010815]
[1763502870061,0.04574,92505.0,92504.0,0.15137]
[1763502870960,0.38349,92510.0,92509.0,0.1513642]
[1763502871165,0.40873803,92510.0,92509.0,0.1513642]
[1763502872656,0.40873803,92510.0,92509.0,0.04321]
[1763502874064,0.04574,92505.0,92504.0,0.04321]
[1763502874263,0.0584,92505.0,92504.0,0.04321]
[1763502874859,0.0584,92505.0,92503.0,0.00011936]
[1763502874860,0.1539,92504.0,92503.0,0.00011936]
[1763502875167,0.18106099,92504.0,92503.0,0.00011936]
[1763502875763,0.07290099,92504.0,92503.0,0.02199936]
[1763502875972,0.07290099,92504.0,92503.0,0.04332936]
[1763502877062,0.02716099,92504.0,92503.0,0.04332936]
[1763502877267,0.3608,92510.0,92509.0,0.1513642]
[1763502877462,0.02717195,92510.0,92509.0,0.5121642]
[1763502877664,0.02717195,92510.0,92509.0,0.7726442]
[1763502877865,0.00016214,92514.0,92513.0,0.1513595]
[1763502878662,0.3608,92526.0,92517.0,0.1513548]
[1763502880263,0.00109181,92518.0,92517.0,0.1513548]
[1763502881873,9.181e-05,92518.0,92517.0,0.1513548]
[1763502882074,0.04683181,92518.0,92517.0,0.1513548]
[1763502883970,0.03683181,92518.0,92517.0,0.1513548]
[1763502884766,0.03683181,92518.0,92517.0,0.04321]
[1763502890967,0.04574,92517.0,92516.0,0.26048]
[1763502891174,0.40654,92517.0,92516.0,0.28236]
[1763502891376,0.1538907,92512.0,92511.0,0.1513613]
[1763502891971,0.04574,92512.0,92511.0,0.1513613]
[1763502892570,0.1538907,92512.0,92511.0,0.1513613]
[1763502892872,0.04574,92512.0,92511.0,0.1513613]
[1763502895170,0.04574,92512.0,92511.0,0.04321]
[1763502895376,0.1081497,92513.0,92508.0,0.00016214]
[1763502895377,0.04574,92509.0,92508.0,0.02204214]
[1763502895674,0.5146942,92509.0,92508.0,0.00016214]
[1763502895874,0.54072376,92509.0,92508.0,0.00016214]
[1763502897282,0.54072376,92509.0,92508.0,0.10831754]
[1763502898082,0.54072376,92509.0,92508.0,0.00016214]
[1763502898777,0.1525377,92506.0,92505.0,0.1081579]
[1763502898978,0.1525377,92506.0,92505.0,0.1311779]
[1763502899377,0.1525377,92506.0,92505.0,0.1081579]
[1763502899585,0.04403,92504.0,92503.0,0.02313936]
[1763502899884,0.04403,92504.0,92503.0,0.00011936]
[1763502900190,0.04403,92504.0,92503.0,0.02313936]
[1763502900487,0.04403,92504.0,92503.0,0.04419936]
[1763502901275,0.02234,92504.0,92503.0,0.04419936]
[1763502901479,0.40483,92509.0,92508.0,0.05671]
[1763502901680,0.43084676,92509.0,92508.0,0.04408]
[1763502901880,0.15219,92504.0,92503.0,0.04419936]
[1763502907482,0.02234,92504.0,92503.0,0.04419936]
[1763502907688,0.38314,92509.0,92508.0,0.1522354]
[1763502907888,0.40483,92509.0,92508.0,0.1522354]
[1763502908190,0.43080383,92509.0,92508.0,0.1522354]
[1763502908392,0.40483,92509.0,92508.0,0.1522354]
[1763502909999,0.40583,92509.0,92508.0,0.1522354]
[1763502913302,0.40483,92509.0,92508.0,0.1522354]
[1763502913901,0.1081384,92523.0,92508.0,0.1522354]
[1763502913902,0.40483,92526.0,92525.0,0.1522155]
[1763502914205,0.43081849,92526.0,92525.0,0.05671]
[1763502914702,0.43081849,92526.0,92525.0,0.04408]
[1763502915401,0.53895279,92526.0,92525.0,0.04408]
[1763502915999,0.1081413,92520.0,92519.0,0.04408]
[1763502916196,0.15436933,92520.0,92519.0,0.04408]
[1763502916799,0.152176,92516.0,92515.0,0.04408]
[1763502917194,0.1521819,92511.0,92510.0,0.1522319]
[1763502917509,0.5129819,92511.0,92510.0,0.1522319]
[1763502919397,0.5139819,92511.0,92510.0,0.1522319]
[1763502920003,0.40583,92511.0,92510.0,0.1522319]
[1763502920607,0.40583,92511.0,92510.0,0.1648619]
[1763502921204,0.3618,92511.0,92510.0,0.1648619]
[1763502921404,0.001,92511.0,92510.0,0.1648619]
[1763502921712,0.3608,92519.0,92518.0,0.1518936]
[1763502923007,0.3618,92519.0,92518.0,0.1518936]
[1763502924314,0.38449,92519.0,92518.0,0.1518936]
[1763502924713,0.40591,92519.0,92518.0,0.1518936]
[1763502925014,0.38449,92519.0,92518.0,0.1518936]
[1763502925408,0.3608,92519.0,92518.0,0.1518936]
[1763502927408,0.00016214,92527.0,92518.0,0.1518936]
[1763502927409,0.36096214,92527.0,92526.0,0.1511843]
[1763502928009,0.40519214,92527.0,92526.0,0.1511843]
[1763502932711,0.40519214,92527.0,92526.0,0.1295943]
[1763502932712,0.51332524,92527.0,92526.0,0.1295943]
[1763502932911,0.40519214,92527.0,92526.0,0.1511843]
[1763502945126,0.40519214,92527.0,92526.0,0.1081343]
[1763502945327,0.40519214,92527.0,92526.0,0.1304143]
[1763502945523,0.40519214,92527.0,92526.0,0.1520043]
[1763502949334,0.04423,92525.0,92524.0,0.4124866]
[1763502949523,0.04423,92525.0,92524.0,0.1520066]
[1763502952134,0.38352214,92527.0,92526.0,0.1520043]
[1763502952626,0.04439214,92527.0,92526.0,0.1520043]
[1763502956426,0.00016214,92527.0,92526.0,0.1520043]
[1763502956832,0.00016214,92527.0,92526.0,0.16282509]
[1763502957634,0.00016214,92527.0,92526.0,0.1520043]
[1763502957837,0.02272214,92527.0,92526.0,0.1520043]
[1763502958328,0.04512214,92527.0,92526.0,0.1520043]
[1763502958936,0.04512214,92527.0,92526.0,0.1530043]
[1763502959537,0.04512214,92527.0,92526.0,0.1520043]
[1763502959833,0.04512214,92527.0,92526.0,0.1530043]
[1763502961331,0.00016214,92527.0,92526.0,0.1530043]
[1763502964532,0.02183214,92527.0,92526.0,0.1530043]
[1763502965329,0.00016214,92527.0,92526.0,0.1530043]
[1763502965731,0.02183214,92527.0,92526.0,0.1530043]
[1763502968337,0.04423214,92527.0,92526.0,0.1530043]
[1763502970740,0.04423214,92527.0,92526.0,0.02262]
[1763502971131,0.04423214,92527.0,92526.0,0.04545]
[1763502971732,0.04423214,92527.0,92526.0,0.04445]
[1763502988350,0.00016214,92527.0,92526.0,0.04445]
[1763502988752,0.04632214,92527.0,92526.0,0.04445]
[1763502989761,0.00016214,92527.0,92526.0,0.04445]
[1763502990763,0.02317214,92527.0,92526.0,0.04445]
[1763502991563,0.04632214,92527.0,92526.0,0.04445]
[1763502993864,0.00016214,92527.0,92526.0,0.04445]
[1763502994564,0.02317214,92527.0,92526.0,0.04445]
[1763502995465,0.02317214,92527.0,92526.0,0.04545]
[1763502996269,0.02317214,92527.0,92526.0,0.04445]
[1763502996562,0.3608,92549.0,92548.0,0.05653]
[1763502996563,0.38381,92549.0,92548.0,0.05653]
[1763502996763,0.02596216,92549.0,92548.0,0.4249986]
[1763502997072,0.5150559,92559.0,92558.0,0.04452]
[1763502997262,0.54099712,92559.0,92558.0,0.02163]
[1763502997465,0.04616,92550.0,92549.0,0.16141977]
[1763502997664,0.04835803,92550.0,92549.0,0.1526274]
[1763502998166,0.04616,92549.0,92548.0,0.26036]
[1763502998366,0.04616,92549.0,92548.0,0.28199]
[1763502998567,0.04716,92549.0,92548.0,0.28199]
[1763502998863,0.04616,92541.0,92540.0,0.04468214]
[1763502999063,0.40696,92541.0,92540.0,0.30504214]
[1763503000273,0.40696,92541.0,92540.0,0.26052214]
[1763503000767,0.40696,92541.0,92540.0,0.00016214]
[1763503001973,0.40796,92541.0,92540.0,0.00016214]
[1763503002367,0.43388396,92541.0,92540.0,0.00016214]
[1763503003366,0.43288396,92541.0,92540.0,0.00016214]
[1763503003566,0.43388396,92541.0,92540.0,0.00016214]
[1763503004873,0.43388396,92541.0,92540.0,0.10828014]
[1763503005268,0.43388396,92541.0,92540.0,0.00016214]
[1763503010379,0.69420396,92541.0,92540.0,0.00016214]
[1763503013173,0.69420396,92541.0,92540.0,0.02179214]
[1763503013980,0.69420396,92541.0,92540.0,0.00016214]
[1763503014386,0.69420396,92541.0,92540.0,0.02179214]
[1763503016285,0.69420396,92541.0,92540.0,0.04468214]
[1763503016486,0.69420396,92541.0,92540.0,0.02179214]
[1763503017294,0.69420396,92541.0,92540.0,0.04468214]
[1763503017695,0.69420396,92541.0,92540.0,0.00016214]
[1763503019687,0.69420396,92541.0,92540.0,0.04335214]
[1763503021489,0.43388396,92541.0,92540.0,0.04335214]
[1763503022992,0.43388396,92541.0,92540.0,0.05683214]
[1763503023197,0.43388396,92541.0,92540.0,0.04335214]
[1763503025486,0.43388396,92541.0,92540.0,0.05683214]
[1763503026096,0.40796,92541.0,92540.0,0.05683214]
[1763503027202,0.40696,92541.0,92540.0,0.05683214]
[1763503027603,0.40696,92541.0,92540.0,0.00016214]
[1763503027801,0.43285811,92541.0,92540.0,0.00016214]
[1763503028593,0.43285811,92541.0,92540.0,0.02125214]
[1763503028897,0.43285811,92541.0,92540.0,0.04335214]
[1763503029601,0.43285811,92541.0,92540.0,0.02125214]
[1763503030198,0.43385811,92541.0,92540.0,0.00016214]
[1763503031998,0.43385811,92541.0,92540.0,0.02125214]
[1763503032403,0.43385811,92541.0,92540.0,0.04335214]
[1763503033600,0.43385811,92541.0,92540.0,0.15147004]
[1763503033895,0.43385811,92541.0,92540.0,0.04335214]
[1763503034502,0.43285811,92541.0,92540.0,0.04335214]
[1763503034704,0.43385811,92541.0,92540.0,0.04335214]
[1763503037905,0.43285811,92541.0,92540.0,0.04335214]
[1763503038105,0.43385811,92541.0,92540.0,0.04335214]
[1763503040911,0.43385811,92541.0,92540.0,0.02125214]
[1763503044614,0.43385811,92541.0,92540.0,0.00016214]
[1763503044912,0.43385811,92541.0,92540.0,0.02331214]
[1763503045618,0.43385811,92541.0,92540.0,0.13143004]
[1763503046714,0.43285811,92541.0,92540.0,0.15315004]
[1763503046916,0.43385811,92541.0,92540.0,0.15315004]
[1763503047314,0.43285811,92541.0,92540.0,0.15315004]
[1763503047616,0.43385811,92541.0,92540.0,0.15315004]
[1763503048816,0.43285811,92541.0,92540.0,0.15315004]
[1763503049117,0.43385811,92541.0,92540.0,0.15315004]
[1763503051213,0.43385811,92541.0,92540.0,0.04503214]
[1763503053514,0.43285811,92541.0,92540.0,0.04503214]
[1763503053820,0.43385811,92541.0,92540.0,0.04503214]
[1763503054420,0.45149517,92541.0,92540.0,0.04301214]
[1763503054621,0.45149517,92541.0,92540.0,0.02156214]
[1763503055015,0.45149517,92541.0,92540.0,0.04301214]
[1763503055418,0.45149517,92541.0,92540.0,0.02156214]
[1763503055624,0.45149517,92541.0,92540.0,0.00016214]
[1763503055822,0.45149517,92541.0,92540.0,0.02156214]
[1763503056115,0.45149517,92541.0,92540.0,0.04301214]
[1763503056810,0.45149517,92541.0,92540.0,0.02156214]
[1763503057722,0.45149517,92541.0,92540.0,0.00016214]
[1763503061726,0.45049517,92541.0,92540.0,0.00016214]
[1763503062025,0.45149517,92541.0,92540.0,0.00016214]
[1763503062323,0.45049517,92541.0,92540.0,0.00016214]
[1763503062622,0.45149517,92541.0,92540.0,0.00016214]
[1763503066926,0.45149517,92541.0,92540.0,0.02156214]
[1763503067119,0.45149517,92541.0,92540.0,0.00016214]
[1763503067515,0.45149517,92541.0,92540.0,0.02156214]
[1763503067715,0.45149517,92541.0,92540.0,0.00016214]
[1763503070634,0.15508603,92540.0,92539.0,0.12475382]
[1763503070816,0.18098414,92540.0,92539.0,0.12475382]
[1763503071628,0.152902,92528.0,92527.0,0.1509822]
[1763503071921,0.04477,92528.0,92527.0,0.1509822]
[1763503072917,0.152902,92528.0,92527.0,0.04285]
[1763503073724,0.04477,92528.0,92527.0,0.04285]
[1763503073917,0.1529088,92523.0,92522.0,0.04285]
[1763503074234,0.04477,92523.0,92522.0,0.04285]
[1763503077517,0.3608,92531.0,92530.0,0.1525196]
[1763503077922,0.40485,92531.0,92530.0,0.1525196]
[1763503078523,0.40485,92531.0,92530.0,0.04439]
[1763503078724,0.40585,92531.0,92530.0,0.04439]
[1763503080131,0.40485,92531.0,92530.0,0.04439]
[1763503081331,0.40585,92531.0,92530.0,0.04439]
[1763503081625,0.53968521,92531.0,92530.0,0.04439]
[1763503081831,0.43155671,92531.0,92530.0,0.04439]
[1763503082026,0.40585,92531.0,92530.0,0.04439]
[1763503082926,0.3618,92531.0,92530.0,0.04439]
[1763503083232,0.38291,92531.0,92530.0,0.04439]
[1763503083632,0.40585,92531.0,92530.0,0.04439]
[1763503083932,0.40485,92531.0,92530.0,0.04439]
[1763503087031,0.00016214,92537.0,92531.0,0.1081285]
[1763503087226,0.00016214,92537.0,92536.0,0.05591]
[1763503088124,0.02127214,92537.0,92536.0,0.05591]
[1763503088532,0.04421214,92537.0,92536.0,0.1640326]
[1763503089627,0.02127214,92537.0,92536.0,0.1640326]
[1763503089828,0.04421214,92537.0,92536.0,0.1640326]
[1763503093426,0.00016214,92537.0,92536.0,0.1640326]
[1763503093740,0.04421214,92537.0,92536.0,0.1640326]
[1763503103343,0.04421214,92537.0,92536.0,0.1300526]
[1763503103547,0.04421214,92537.0,92536.0,0.04504]
[1763503105846,0.04421214,92537.0,92536.0,0.05775]
[1763503111763,0.04421214,92537.0,92536.0,0.04504]
[1763503111964,0.04421214,92537.0,92536.0,0.05764]
[1763503114457,0.02127214,92537.0,92536.0,0.05864]
[1763503114662,0.00016214,92537.0,92536.0,0.05864]
[1763503115163,0.00016214,92537.0,92536.0,0.05764]
[1763503116357,0.02171214,92537.0,92536.0,0.05764]
[1763503116667,0.04332214,92537.0,92536.0,0.05764]
[1763503117758,0.02171214,92537.0,92536.0,0.05764]
[1763503118268,0.00016214,92537.0,92536.0,0.05764]
[1763503119273,0.36643258,92541.0,92540.0,0.05612]
[1763503119565,0.36643258,92541.0,92540.0,0.31636]
[1763503119763,0.3608,92559.0,92558.0,0.1516169]
[1763503120067,0.3608,92559.0,92558.0,0.4118569]
[1763503120570,0.04343008,92566.0,92565.0,0.1642087]
[1763503120765,0.00027008,92566.0,92565.0,0.4244487]
[1763503121566,0.04343008,92566.0,92565.0,0.4244487]
[1763503121766,0.04443008,92566.0,92565.0,0.4244487]
[1763503122067,0.00127008,92566.0,92565.0,0.4244487]
[1763503126069,0.01217,92565.0,92563.0,0.1080904]
[1763503126273,0.04316,92564.0,92563.0,0.1516104]
[1763503126476,0.36207008,92566.0,92565.0,0.05612]
[1763503126673,0.38362008,92566.0,92565.0,0.05612]
[1763503126859,0.40523008,92566.0,92565.0,0.05612]
[1763503127068,0.40523008,92566.0,92565.0,0.04352]
[1763503127265,0.40423008,92566.0,92565.0,0.04352]
[1763503127871,0.40523008,92566.0,92565.0,0.04352]
[1763503130773,0.40523008,92566.0,92565.0,0.1516088]
[1763503131068,0.40523008,92566.0,92565.0,0.04352]
[1763503131273,0.04316,92564.0,92563.0,0.30368]
[1763503132770,0.04416,92564.0,92563.0,0.30368]
[1763503142476,0.04416,92564.0,92563.0,0.4117711]
[1763503142687,0.001,92564.0,92563.0,0.30368]
[1763503142978,0.04238,92552.0,92550.0,0.11687285]
[1763503143171,0.05468,92550.0,92549.0,0.00016214]
[1763503143372,0.05687803,92550.0,92549.0,0.02226214]
[1763503144079,0.05687803,92550.0,92549.0,0.04494214]
[1763503144375,0.05687803,92550.0,92549.0,0.00016214]
[1763503144576,0.04238,92535.0,92534.0,0.152905]
[1763503144779,0.01449803,92550.0,92537.0,0.1529015]
[1763503144780,0.38216,92538.0,92537.0,0.1529015]
[1763503144977,0.40318,92538.0,92537.0,0.1529015]
[1763503145876,0.40318,92538.0,92537.0,0.04478]
[1763503146682,0.5113003,92538.0,92537.0,0.04478]
[1763503146979,0.40318,92538.0,92537.0,0.04478]
[1763503147171,0.5113003,92538.0,92537.0,0.04478]
[1763503147572,0.1505038,92535.0,92534.0,0.001]
[1763503147990,0.1505038,92535.0,92534.0,0.0231]
[1763503148376,0.1505038,92535.0,92534.0,0.0221]
[1763503148583,0.1495038,92535.0,92534.0,0.04478]
[1763503149288,0.1505038,92535.0,92534.0,0.04478]
[1763503150187,0.1495038,92535.0,92534.0,0.04478]
[1763503151586,0.04238,92535.0,92534.0,0.04478]
[1763503153384,0.04338,92535.0,92534.0,0.04478]
[1763503156492,0.3608,92537.0,92536.0,0.04478]
[1763503156693,0.38216,92537.0,92536.0,0.04478]
[1763503156882,0.3608,92537.0,92536.0,0.04478]
[1763503157082,0.40318,92537.0,92536.0,0.04478]
[1763503161787,0.04471,92529.0,92528.0,0.1512613]
[1763503162795,0.04471,92529.0,92528.0,0.04313]
[1763503164693,0.04471,92527.0,92526.0,0.04313]
[1763503164882,0.04471,92527.0,92526.0,0.02107]
[1763503165196,0.1528431,92527.0,92526.0,0.02107]
[1763503165395,0.02281,92527.0,92526.0,0.1512643]
[1763503165592,0.3608,92529.0,92526.0,0.1512643]
[1763503165800,0.38361,92529.0,92528.0,0.04313]
[1763503165992,0.40551,92529.0,92528.0,0.04313]
[1763503170298,0.00219803,92530.0,92529.0,0.1533508]
[1763503171002,0.3608,92537.0,92536.0,0.1533426]
[1763503171203,0.3608,92537.0,92536.0,0.4135826]
[1763503171697,0.04299205,92547.0,92546.0,0.153331]
[1763503174400,0.04399205,92547.0,92546.0,0.153331]
[1763503176704,0.04299205,92547.0,92546.0,0.153331]
[1763503178701,0.40379205,92547.0,92546.0,0.04522]
[1763503179203,0.40379205,92547.0,92546.0,0.1533309]
[1763503181504,0.51190185,92547.0,92546.0,0.1533309]
[1763503181898,0.1577921,92545.0,92544.0,0.1081131]
[1763503182107,0.04283,92544.0,92543.0,0.1081141]
[1763503182306,0.1509433,92544.0,92543.0,0.1311541]
[1763503182505,0.1509433,92544.0,92543.0,0.1081141]
[1763503182906,0.1509433,92544.0,92543.0,0.1311541]
[1763503183494,0.1509433,92544.0,92543.0,0.1533341]
[1763503184001,0.04283,92544.0,92543.0,0.1533341]
[1763503184411,0.04383,92544.0,92543.0,0.1533341]
[1763503188212,0.04383,92544.0,92543.0,0.1533345]
[1763503188508,0.04383,92544.0,92543.0,0.04522]
[1763503188704,0.1509515,92539.0,92538.0,0.1533392]
[1763503188907,0.5117515,92539.0,92538.0,0.1533392]
[1763503189805,0.5127515,92539.0,92538.0,0.1533392]
[1763503190109,0.5127515,92539.0,92538.0,0.1311592]
[1763503190304,0.5117515,92539.0,92538.0,0.1533392]
[1763503190501,0.40463,92539.0,92538.0,0.1533392]
[1763503190703,0.5127491,92539.0,92538.0,0.1533392]
[1763503192408,0.5117491,92539.0,92538.0,0.1533392]
[1763503192610,0.5127491,92539.0,92538.0,0.1533392]
[1763503192902,0.5127491,92539.0,92538.0,0.1081192]
[1763503193107,0.40463,92539.0,92538.0,0.1533392]
[1763503194808,0.40463,92539.0,92507.0,0.3608]
[1763503194809,0.04283,92528.0,92527.0,0.30542]
[1763503195111,0.03796031,92528.0,92527.0,0.30542]
[1763503196104,0.00219803,92530.0,92529.0,0.04522]
[1763503196411,0.02328803,92530.0,92529.0,0.04522]
[1763503196801,0.00219803,92530.0,92529.0,0.04522]
[1763503197008,0.04502803,92530.0,92529.0,0.04522]
[1763503197207,0.00219803,92530.0,92529.0,0.04522]
[1763503198709,0.04832803,92530.0,92529.0,0.04522]
[1763503202005,0.02552803,92530.0,92529.0,0.04522]
[1763503202411,0.04832803,92530.0,92529.0,0.04522]
[1763503202821,0.1542626,92528.0,92527.0,0.28306]
[1763503203010,0.04613,92528.0,92527.0,0.30615]
[1763503204919,0.04613,92528.0,92527.0,0.04595]
[1763503205816,0.04613,92528.0,92527.0,0.1540838]
[1763503208322,0.1542626,92528.0,92527.0,0.1540838]
[1763503208821,0.1542626,92528.0,92527.0,0.04595]
[1763503209418,0.04613,92528.0,92527.0,0.04595]
[1763503213225,0.40693,92528.0,92527.0,0.04595]
[1763503217529,0.04613,92528.0,92527.0,0.04595]
[1763503217722,0.40693,92528.0,92527.0,0.04595]
[1763503219823,0.3608,92528.0,92527.0,0.04595]
[1763503220025,0.03873042,92552.0,92527.0,0.04595]
[1763503220026,0.36096205,92547.0,92546.0,0.1540616]
[1763503220223,0.00016205,92547.0,92546.0,0.1540616]
[1763503220423,0.04640008,92566.0,92565.0,0.1540394]
[1763503221832,0.04740008,92566.0,92565.0,0.04595]
[1763503222719,0.04740008,92566.0,92565.0,0.1540394]
[1763503226230,0.15548828,92566.0,92565.0,0.04595]
[1763503228033,0.04740008,92566.0,92565.0,0.04595]
[1763503232930,0.04740008,92566.0,92565.0,0.02286]
[1763503233236,0.04740008,92566.0,92565.0,0.0445]
[1763503235140,0.04940008,92566.0,92565.0,0.0445]
[1763503237635,0.04940008,92566.0,92565.0,0.05805]
[1763503239749,0.04940008,92566.0,92565.0,0.1661388]
[1763503239950,0.00327008,92566.0,92565.0,0.1661388]
[1763503240352,0.00227008,92566.0,92565.0,0.1661388]
[1763503240555,0.00027008,92566.0,92565.0,0.1661388]
[1763503240760,0.00127008,92566.0,92565.0,0.1661388]
[1763503240960,0.04532008,92566.0,92565.0,0.1661388]
[1763503242454,0.15340768,92566.0,92565.0,0.1661388]
[1763503243764,0.15240768,92566.0,92565.0,0.1661388]
[1763503244061,0.15340768,92566.0,92565.0,0.1661388]
[1763503244261,0.04532008,92566.0,92565.0,0.1661388]
[1763503246551,0.04432008,92566.0,92565.0,0.1661388]
[1763503246866,0.04532008,92566.0,92565.0,0.1661388]
[1763503249360,0.04432008,92566.0,92565.0,0.1661388]
[1763503249566,0.04532008,92566.0,92565.0,0.1661388]
[1763503251461,0.02370008,92566.0,92565.0,0.1661388]
[1763503251866,0.04532008,92566.0,92565.0,0.1661388]
[1763503255269,0.04532008,92566.0,92565.0,0.0445]
[1763503256063,0.00127008,92566.0,92565.0,0.0445]
[1763503256463,0.3608,92568.0,92565.0,0.31525444]
[1763503256666,0.00016205,92575.0,92565.0,0.31525444]
[1763503256667,0.00016205,92575.0,92574.0,0.1511783]
[1763503257974,0.04433205,92575.0,92574.0,0.0431]
[1763503259577,0.00116205,92575.0,92574.0,0.0431]
[1763503260170,0.02389205,92575.0,92574.0,0.0431]
[1763503260566,0.00016205,92575.0,92574.0,0.0431]
[1763503260771,0.00116205,92575.0,92574.0,0.0431]
[1763503261073,0.02389205,92575.0,92574.0,0.0431]
[1763503262277,0.00016205,92575.0,92574.0,0.0431]
[1763503262479,0.00116205,92575.0,92574.0,0.0431]
[1763503262869,0.04433205,92575.0,92574.0,0.0431]
[1763503263069,0.04533205,92575.0,92574.0,0.0431]
[1763503263574,0.04433205,92575.0,92574.0,0.0431]
[1763503263778,0.02389205,92575.0,92574.0,0.0431]
[1763503264372,0.00116205,92575.0,92574.0,0.0431]
[1763503271277,0.00116205,92575.0,92574.0,0.30318]
[1763503273380,0.3608,92597.0,92578.0,0.1524836]
[1763503273678,0.3608,92587.0,92586.0,0.1524742]
[1763503274276,0.40497,92587.0,92586.0,0.1524742]
[1763503275078,0.3608,92587.0,92586.0,0.1524742]
[1763503275479,0.38353,92587.0,92586.0,0.1524742]
[1763503275882,0.38453,92587.0,92586.0,0.1524742]
[1763503276376,0.3628,92587.0,92586.0,0.1524742]
[1763503277786,0.38553,92587.0,92586.0,0.1524742]
[1763503277985,0.40697,92587.0,92586.0,0.1524742]
[1763503282991,0.3628,92587.0,92586.0,0.1524742]
[1763503283191,0.38411,92587.0,92586.0,0.1524742]
[1763503285286,0.40636,92587.0,92586.0,0.1524742]
[1763503285496,0.40636,92587.0,92586.0,0.1527642]
[1763503289590,0.04556,92587.0,92586.0,0.1527642]
[1763503292297,0.00016205,92596.0,92586.0,0.20414375]
[1763503292595,0.04524205,92596.0,92595.0,0.1532737]
[1763503292793,0.04524205,92596.0,92595.0,0.4133137]
[1763503293586,0.04624205,92596.0,92595.0,0.4133137]
[1763503294299,0.04524205,92596.0,92595.0,0.4133137]
[1763503295985,0.02198205,92596.0,92595.0,0.4133137]
[1763503296184,0.04524205,92596.0,92595.0,0.4133137]
[1763503296692,0.02198205,92596.0,92595.0,0.4133137]
[1763503297202,0.00016205,92596.0,92595.0,0.4133137]
[1763503303295,0.02198205,92596.0,92595.0,0.4133137]
[1763503304502,0.04524205,92596.0,92595.0,0.4133137]
[1763503307198,0.02198205,92596.0,92595.0,0.4133137]
[1763503307403,0.00016205,92596.0,92595.0,0.4133137]
[1763503307602,0.02198205,92596.0,92595.0,0.4133137]
[1763503307804,0.00016205,92596.0,92595.0,0.4133137]